Workbook

Sheet Bets
A6: Total No. Bets | B6: =B7+B8+B9 -> 139
A7: Total No. Winners | B7: =COUNTIF(INDIRECT("I18"):INDIRECT("I10000"),"W")+COUNTIF(INDIRECT("I18"):INDIRECT("I10000"),"EWW")+COUNTIF(INDIRECT("I18"):INDIRECT("I10000"),"P") -> 60 | C7: =IF(B7<>0,B7/B6,0) -> 0.4316546763
A8: Total No. Losers | B8: =COUNTIF(INDIRECT("I18"):INDIRECT("I10000"),"L") -> 71 | C8: =IF(B8<>0,B8/B6,0) -> 0.5107913669
A9: Total No. Void | B9: =COUNTIF(INDIRECT("I18"):INDIRECT("I10000"),"V") -> 8 | C9: =IF(B9<>0,B9/B6,0) -> 0.05755395683
A10: Total Staked | B10: =SUMIF(INDIRECT("I18"):INDIRECT("I10000"),"<> ",INDIRECT("G18"):INDIRECT("G10000")) -> 46680
A11: Return | B11: =SUM(INDIRECT("L18"):INDIRECT("L10000")) -> 26008.4
A12: ROI (Return on Investment) | B12: =IF(B10<>0,B11/B10,0) -> 0.5571636675
A13: Total Level Staked | B13: =SUM((COUNTIF(INDIRECT("G18"):INDIRECT("G10000"),"<>"))-(COUNTIF(INDIRECT("I18"):INDIRECT("I10000")," "))) -> 140
A14: Return | B14: =SUM(INDIRECT("N18"):INDIRECT("N10000")) -> 51.2
A15: ROI | B15: =IF(B13<>0,B14/B13,0) -> 0.3657142857
A17: Date | B17: Sport | C17: Pick | D17: Bookie | E17: Odds | F17: Back/Lay | G17: Stake/Win | H17: Com. | I17: W/L | J17: Type: | L17: Actual P/L | M17: Total P/L | N17: LS P/L | O17: LS Total P/L
A18: 2016-10-29 | B18: Tennis | C18: Y Lu | D18: Marathon Bet | E18: 1.975 | F18: B | G18: 100 | H18: 0 | I18: - | J18: VIP | L18: =IF(OR(I18="",I18="-"),"",IF(I18="V",0,IF(I18="W",IF(F18="B",ROUND(((E18-1)*G18)-(H18*((E18-1)*G18)),2)*(IF(ISBLANK(K18),1,1-K18)),G18),IF(I18="P",((G18/2)*((E18-1)/J18)) *(IF(ISBLANK(K18),1,1-K18))-(G18/2),IF(I18="EWW",IF(OR(F18="B", F18="EW"),G18/2*(E18-1)+(G18/2)*((E18-1)/J18)) *(IF(ISBLANK(K18),1,1-K18)),IF(I18="L",IF(F18="B",-(G18),IF(F18="EW",-(G18),-(ROUND(((E18-1)*G18)-(H18*((E18-1)*G18)),2)))))))))) ->  | M18: =IF(ISNUMBER(#REF!),IF(L18<>"",#REF!+L18,""),L18) ->  | N18: =IF(OR(I18="",I18="-"),"",IF(I18="V",0,IF(I18="W",IF(F18="B",ROUND(((E18-1)*1)-(H18*((E18-1)*1)),2) *(IF(ISBLANK(K18),1,1-K18)),1),IF(I18="P",((1/2)*((E18-1)/J18)) *(IF(ISBLANK(K18),1,1-K18))-(1/2),IF(I18="EWW",IF(OR(F18="B", F18="EW"),1/2*(E18-1)+(1/2)*((E18-1)/J18)) *(IF(ISBLANK(K18),1,1-K18)),IF(I18="L",IF(F18="B",-(1),IF(F18="EW",-(1),-(ROUND(((E18-1)*1)-(H18*((E18-1)*1)),2)))))))))) ->  | O18: =IF(ISNUMBER(#REF!),IF(N18<>"",#REF!+N18,""),N18) -> 
A19: 2016-10-28 | B19: Tennis | C19: M Zverev | D19: Coral | E19: 3.6 | F19: B | G19: 1000 | H19: 0 | I19: W | J19: Premium Investment | L19: 2600 | M19: =IF(ISNUMBER(#REF!),IF(L19<>"",#REF!+L19,""),L19) -> 2600 | N19: 2.6 | O19: =IF(ISNUMBER(#REF!),IF(N19<>"",#REF!+N19,""),N19) -> 2.6
A20: 2016-10-28 | B20: Tennis | C20: G Muguruza | D20: Smarkets.com | E20: 1.93 | F20: B | G20: 500 | H20: 0.02 | I20: W | J20: VIP | L20: 455.7 | M20: =IF(ISNUMBER(#REF!),IF(L20<>"",#REF!+L20,""),L20) -> 455.7 | N20: 0.91 | O20: =IF(ISNUMBER(#REF!),IF(N20<>"",#REF!+N20,""),N20) -> 0.91
A21: 2016-10-27 | B21: Tennis | C21: D Goffin + 1.5 (Set Handicap) | D21: Pinnacle | E21: 1.729 | F21: B | G21: 300 | H21: 0 | I21: L | J21: Standard | L21: -300 | M21: =IF(ISNUMBER(#REF!),IF(L21<>"",#REF!+L21,""),L21) -> -300 | N21: -1 | O21: =IF(ISNUMBER(#REF!),IF(N21<>"",#REF!+N21,""),N21) -> -1
A22: 2016-10-26 | B22: Tennis | C22: P Kohlschreiber (Lay / Bet Against) | D22: Smarkets.com | E22: 1.3 | F22: L | G22: 1000 | H22: 0 | I22: L | J22: Premium Investment | L22: -300 | M22: =IF(ISNUMBER(#REF!),IF(L22<>"",#REF!+L22,""),L22) -> -300 | N22: -0.3 | O22: =IF(ISNUMBER(#REF!),IF(N22<>"",#REF!+N22,""),N22) -> -0.3
A23: 2016-10-26 | B23: Tennis | C23: A Mannarino | D23: Marathon Bet | E23: 2.765 | F23: B | G23: 100 | H23: 0 | I23: L | J23: VIP | L23: -100 | M23: =IF(ISNUMBER(#REF!),IF(L23<>"",#REF!+L23,""),L23) -> -100 | N23: -1 | O23: =IF(ISNUMBER(#REF!),IF(N23<>"",#REF!+N23,""),N23) -> -1
A24: 2016-10-25 | B24: Tennis | C24: M Raonic (Lay / Bet Against) | D24: Smarkets.com | E24: 1.1 | F24: L | G24: 1000 | H24: 0.02 | I24: W | J24: Premium Investment | L24: 1000 | M24: =IF(ISNUMBER(#REF!),IF(L24<>"",#REF!+L24,""),L24) -> 1000 | N24: 1 | O24: =IF(ISNUMBER(#REF!),IF(N24<>"",#REF!+N24,""),N24) -> 1
A25: 2016-10-25 | B25: Tennis | C25: M Keys | D25: Smarkets.com | E25: 2.18 | F25: B | G25: 300 | H25: 0.02 | I25: W | J25: VIP | L25: 346.92 | M25: =IF(ISNUMBER(#REF!),IF(L25<>"",#REF!+L25,""),L25) -> 346.92 | N25: 1.16 | O25: =IF(ISNUMBER(#REF!),IF(N25<>"",#REF!+N25,""),N25) -> 1.16
A26: 2016-10-25 | B26: Tennis | C26: Over 22.5 Games (Sousa vs Cuevas) | D26: Marathon Bet | E26: 1.91 | F26: B | G26: 200 | H26: 0 | I26: V | J26: Standard | L26: 0 | M26: =IF(ISNUMBER(#REF!),IF(L26<>"",#REF!+L26,""),L26) -> 0 | N26: 0 | O26: =IF(ISNUMBER(#REF!),IF(N26<>"",#REF!+N26,""),N26) -> 0
A27: 2016-10-25 | B27: Tennis | C27: D Lajovic +2.5 (1st Set Handicap) | D27: Marathon Bet | E27: 1.875 | F27: B | G27: 200 | H27: 0 | I27: W | J27: Premium Investment | L27: 175 | M27: =IF(ISNUMBER(#REF!),IF(L27<>"",#REF!+L27,""),L27) -> 175 | N27: 0.88 | O27: =IF(ISNUMBER(#REF!),IF(N27<>"",#REF!+N27,""),N27) -> 0.88
A28: 2016-10-24 | B28: Tennis | C28: G Muller | D28: Marathon Bet | E28: 2.77 | F28: B | G28: 100 | H28: 0 | I28: W | J28: VIP | L28: 177 | M28: =IF(ISNUMBER(#REF!),IF(L28<>"",#REF!+L28,""),L28) -> 177 | N28: 1.77 | O28: =IF(ISNUMBER(#REF!),IF(N28<>"",#REF!+N28,""),N28) -> 1.77
A29: 2016-10-23 | B29: Tennis | C29: Yen-Hsun Lu -3.5 (Games Handicap) | D29: Pinnacle | E29: 1.869 | F29: B | G29: 100 | H29: 0 | I29: W | J29: VIP | L29: 86.9 | M29: =IF(ISNUMBER(#REF!),IF(L29<>"",#REF!+L29,""),L29) -> 86.9 | N29: 0.87 | O29: =IF(ISNUMBER(#REF!),IF(N29<>"",#REF!+N29,""),N29) -> 0.87
A30: 2016-10-22 | B30: Tennis | C30: F Fognini | D30: William Hill | E30: 2 | F30: B | G30: 100 | H30: 0 | I30: W | J30: VIP | L30: 100 | M30: =IF(ISNUMBER(#REF!),IF(L30<>"",#REF!+L30,""),L30) -> 100 | N30: 1 | O30: =IF(ISNUMBER(#REF!),IF(N30<>"",#REF!+N30,""),N30) -> 1
A31: 2016-10-21 | B31: Tennis | C31: Over 22 Games (Kuznetsova vs Svitolina) | D31: Pinnacle | E31: 1.99 | F31: B | G31: 100 | H31: 0 | I31: W | J31: VIP | L31: 99 | M31: =IF(ISNUMBER(#REF!),IF(L31<>"",#REF!+L31,""),L31) -> 99 | N31: 0.99 | O31: =IF(ISNUMBER(#REF!),IF(N31<>"",#REF!+N31,""),N31) -> 0.99
A32: 2016-10-20 | B32: Tennis | C32: J L Struff | D32: Pinnacle | E32: 3.72 | F32: B | G32: 200 | H32: 0 | I32: W | J32: VIP | L32: 544 | M32: =IF(ISNUMBER(#REF!),IF(L32<>"",#REF!+L32,""),L32) -> 544 | N32: 2.72 | O32: =IF(ISNUMBER(#REF!),IF(N32<>"",#REF!+N32,""),N32) -> 2.72
A33: 2016-10-19 | B33: Tennis | C33: E Donskoy | D33: Marathon Bet | E33: 1.87 | F33: B | G33: 100 | H33: 0 | I33: L | J33: Standard | L33: -100 | M33: =IF(ISNUMBER(#REF!),IF(L33<>"",#REF!+L33,""),L33) -> -100 | N33: -1 | O33: =IF(ISNUMBER(#REF!),IF(N33<>"",#REF!+N33,""),N33) -> -1
A34: 2016-10-18 | B34: Tennis | C34: G Jacq | D34: Pinnacle | E34: 2.63 | F34: B | G34: 800 | H34: 0 | I34: W | J34: Premium Investment | L34: 1304 | M34: =IF(ISNUMBER(#REF!),IF(L34<>"",#REF!+L34,""),L34) -> 1304 | N34: 1.63 | O34: =IF(ISNUMBER(#REF!),IF(N34<>"",#REF!+N34,""),N34) -> 1.63
A35: 2016-10-18 | B35: Tennis | C35: D Brown | D35: Marathon Bet | E35: 3.263 | F35: B | G35: 200 | H35: 0 | I35: W | J35: VIP | L35: 452.6 | M35: =IF(ISNUMBER(#REF!),IF(L35<>"",#REF!+L35,""),L35) -> 452.6 | N35: 2.26 | O35: =IF(ISNUMBER(#REF!),IF(N35<>"",#REF!+N35,""),N35) -> 2.26
A36: 2016-10-17 | B36: Tennis | C36: J McGee | D36: Coral | E36: 1.84 | F36: B | G36: 100 | H36: 0 | I36: L | J36: VIP | L36: -100 | M36: =IF(ISNUMBER(#REF!),IF(L36<>"",#REF!+L36,""),L36) -> -100 | N36: -1 | O36: =IF(ISNUMBER(#REF!),IF(N36<>"",#REF!+N36,""),N36) -> -1
A37: 2016-10-16 | B37: Tennis | C37: M Gawron | D37: Sky Bet | E37: 1.84 | F37: B | G37: 1000 | H37: 0 | I37: W | J37: Standard | L37: 840 | M37: =IF(ISNUMBER(#REF!),IF(L37<>"",#REF!+L37,""),L37) -> 840 | N37: 0.84 | O37: =IF(ISNUMBER(#REF!),IF(N37<>"",#REF!+N37,""),N37) -> 0.84
A38: 2016-10-16 | B38: Tennis | C38: Over 20.5 Games (Wozniacki vs Mladenovic) | D38: Pinnacle | E38: 1.934 | F38: B | G38: 100 | H38: 0 | I38: W | J38: VIP | L38: 93.4 | M38: =IF(ISNUMBER(#REF!),IF(L38<>"",#REF!+L38,""),L38) -> 93.4 | N38: 0.93 | O38: =IF(ISNUMBER(#REF!),IF(N38<>"",#REF!+N38,""),N38) -> 0.93
A39: 2016-10-15 | B39: Tennis | C39: R Bautista-Agut | D39: Betway | E39: 6.5 | F39: B | G39: 1000 | H39: 0 | I39: W | J39: VIP | L39: 5500 | M39: =IF(ISNUMBER(#REF!),IF(L39<>"",#REF!+L39,""),L39) -> 5500 | N39: 5.5 | O39: =IF(ISNUMBER(#REF!),IF(N39<>"",#REF!+N39,""),N39) -> 5.5
A40: 2016-10-14 | B40: Tennis | C40: Over 22.5 Games (Zeballos vs Dutra Silva) | D40: Paddy Power | E40: 2 | F40: B | G40: 500 | H40: 0 | I40: L | J40: VIP | L40: -500 | M40: =IF(ISNUMBER(#REF!),IF(L40<>"",#REF!+L40,""),L40) -> -500 | N40: -1 | O40: =IF(ISNUMBER(#REF!),IF(N40<>"",#REF!+N40,""),N40) -> -1
A41: 2016-10-14 | B41: Tennis | C41: J W Tsonga | D41: Smarkets.com | E41: 1.71 | F41: B | G41: 300 | H41: 0.02 | I41: L | J41: VIP | L41: -300 | M41: =IF(ISNUMBER(#REF!),IF(L41<>"",#REF!+L41,""),L41) -> -300 | N41: -1 | O41: =IF(ISNUMBER(#REF!),IF(N41<>"",#REF!+N41,""),N41) -> -1
A42: 2016-10-13 | B42: Tennis | C42: Over 22.5 Games (Groth v Escobedo) | D42: Bet365 | E42: 1.8 | F42: B | G42: 100 | H42: 0 | I42: W | J42: VIP | L42: 80 | M42: =IF(ISNUMBER(#REF!),IF(L42<>"",#REF!+L42,""),L42) -> 80 | N42: 0.8 | O42: =IF(ISNUMBER(#REF!),IF(N42<>"",#REF!+N42,""),N42) -> 0.8
A43: 2016-10-13 | B43: Tennis | C43: A Zverev | D43: Smarkets.com | E43: 2.04 | F43: B | G43: 1000 | H43: 0.02 | I43: L | J43: VIP | L43: -1000 | M43: =IF(ISNUMBER(#REF!),IF(L43<>"",#REF!+L43,""),L43) -> -1000 | N43: -1 | O43: =IF(ISNUMBER(#REF!),IF(N43<>"",#REF!+N43,""),N43) -> -1
A44: 2016-10-13 | B44: Tennis | C44: S Johnson | D44: Smarkets.com | E44: 11 | F44: B | G44: 100 | H44: 0.02 | I44: L | J44: Premium Investment | L44: -100 | M44: =IF(ISNUMBER(#REF!),IF(L44<>"",#REF!+L44,""),L44) -> -100 | N44: -1 | O44: =IF(ISNUMBER(#REF!),IF(N44<>"",#REF!+N44,""),N44) -> -1
A45: 2016-10-12 | B45: Tennis | C45: V Troicki | D45: Pinnacle | E45: 5.04 | F45: B | G45: 500 | H45: 0 | I45: W | J45: Premium Investment | L45: 2020 | M45: =IF(ISNUMBER(#REF!),IF(L45<>"",#REF!+L45,""),L45) -> 2020 | N45: 4.04 | O45: =IF(ISNUMBER(#REF!),IF(N45<>"",#REF!+N45,""),N45) -> 4.04
A46: 2016-10-12 | B46: Tennis | C46: A Bublik +1.5 (Set Handicap) | D46: Paddy Power | E46: 2.375 | F46: B | G46: 500 | H46: 0 | I46: V | J46: Standard | L46: 0 | M46: =IF(ISNUMBER(#REF!),IF(L46<>"",#REF!+L46,""),L46) -> 0 | N46: 0 | O46: =IF(ISNUMBER(#REF!),IF(N46<>"",#REF!+N46,""),N46) -> 0
A47: 2016-10-11 | B47: Tennis | C47: M Mmoh + 1.5 (Set Handicap) | D47: Paddy Power | E47: 1.533 | F47: B | G47: 300 | H47: 0 | I47: L | J47: VIP | L47: -300 | M47: =IF(ISNUMBER(#REF!),IF(L47<>"",#REF!+L47,""),L47) -> -300 | N47: -1 | O47: =IF(ISNUMBER(#REF!),IF(N47<>"",#REF!+N47,""),N47) -> -1
A48: 2016-10-11 | B48: Tennis | C48: P Gunneswaran | D48: Unibet | E48: 2.75 | F48: B | G48: 200 | H48: 0 | I48: W | J48: VIP | L48: 350 | M48: =IF(ISNUMBER(#REF!),IF(L48<>"",#REF!+L48,""),L48) -> 350 | N48: 1.75 | O48: =IF(ISNUMBER(#REF!),IF(N48<>"",#REF!+N48,""),N48) -> 1.75
A49: 2016-10-11 | B49: Tennis | C49: D Goffin | D49: Pinnacle | E49: 3.32 | F49: B | G49: 100 | H49: 0 | I49: W | J49: VIP | L49: 232 | M49: =IF(ISNUMBER(#REF!),IF(L49<>"",#REF!+L49,""),L49) -> 232 | N49: 2.32 | O49: =IF(ISNUMBER(#REF!),IF(N49<>"",#REF!+N49,""),N49) -> 2.32
A50: 2016-10-11 | B50: Tennis | C50: N Broady | D50: Pinnacle | E50: 7.13 | F50: B | G50: 100 | H50: 0 | I50: L | J50: Standard | L50: -100 | M50: =IF(ISNUMBER(#REF!),IF(L50<>"",#REF!+L50,""),L50) -> -100 | N50: -1 | O50: =IF(ISNUMBER(#REF!),IF(N50<>"",#REF!+N50,""),N50) -> -1
A51: 2016-10-09 | B51: Tennis | C51: D Goffin + 1.5 (Set Handicap) | D51: Betway | E51: 1.704 | F51: B | G51: 500 | H51: 0 | I51: W | J51: VIP | L51: 352 | M51: =IF(ISNUMBER(#REF!),IF(L51<>"",#REF!+L51,""),L51) -> 352 | N51: 0.7 | O51: =IF(ISNUMBER(#REF!),IF(N51<>"",#REF!+N51,""),N51) -> 0.7
A52: 2016-10-09 | B52: Tennis | C52: D Goffin | D52: Pinnacle | E52: 2.8 | F52: B | G52: 100 | H52: 0 | I52: L | J52: VIP | L52: -100 | M52: =IF(ISNUMBER(#REF!),IF(L52<>"",#REF!+L52,""),L52) -> -100 | N52: -1 | O52: =IF(ISNUMBER(#REF!),IF(N52<>"",#REF!+N52,""),N52) -> -1
A53: 2016-10-08 | B53: Tennis | C53: G Dimitrov | D53: Pinnacle | E53: 2.4 | F53: B | G53: 300 | H53: 0 | I53: V | J53: VIP | L53: 0 | M53: =IF(ISNUMBER(#REF!),IF(L53<>"",#REF!+L53,""),L53) -> 0 | N53: 0 | O53: =IF(ISNUMBER(#REF!),IF(N53<>"",#REF!+N53,""),N53) -> 0
A54: 2016-10-08 | B54: Tennis | C54: D Ferrer +1.5 (Set Handicap) | D54: Pinnacle | E54: 2.7 | F54: B | G54: 100 | H54: 0 | I54: L | J54: VIP | L54: -100 | M54: =IF(ISNUMBER(#REF!),IF(L54<>"",#REF!+L54,""),L54) -> -100 | N54: -1 | O54: =IF(ISNUMBER(#REF!),IF(N54<>"",#REF!+N54,""),N54) -> -1
A55: 2016-10-07 | B55: Tennis | C55: D Ferrer | D55: Smarkets.com | E55: 2.2 | F55: B | G55: 300 | H55: 0.02 | I55: W | J55: Standard | L55: 352.8 | M55: =IF(ISNUMBER(#REF!),IF(L55<>"",#REF!+L55,""),L55) -> 352.8 | N55: 1.18 | O55: =IF(ISNUMBER(#REF!),IF(N55<>"",#REF!+N55,""),N55) -> 1.18
A56: 2016-10-06 | B56: Tennis | C56: R Nadal -5.5 (Games Handicap) | D56: Paddy Power | E56: 1.8 | F56: B | G56: 500 | H56: 0 | I56: W | J56: VIP | L56: 400 | M56: =IF(ISNUMBER(#REF!),IF(L56<>"",#REF!+L56,""),L56) -> 400 | N56: 0.8 | O56: =IF(ISNUMBER(#REF!),IF(N56<>"",#REF!+N56,""),N56) -> 0.8
A57: 2016-10-06 | B57: Tennis | C57: G Simon | D57: William Hill | E57: 3.4 | F57: B | G57: 100 | H57: 0 | I57: L | J57: Premium Investment | L57: -100 | M57: =IF(ISNUMBER(#REF!),IF(L57<>"",#REF!+L57,""),L57) -> -100 | N57: -1 | O57: =IF(ISNUMBER(#REF!),IF(N57<>"",#REF!+N57,""),N57) -> -1
A58: 2016-10-06 | B58: Tennis | C58: R Stepanek +4 (Games Handicap) | D58: Pinnacle | E58: 2.07 | F58: B | G58: 100 | H58: 0 | I58: V | J58: VIP | L58: 0 | M58: =IF(ISNUMBER(#REF!),IF(L58<>"",#REF!+L58,""),L58) -> 0 | N58: 0 | O58: =IF(ISNUMBER(#REF!),IF(N58<>"",#REF!+N58,""),N58) -> 0
A59: 2016-10-03 | B59: Tennis | C59: A Zverev | D59: BoyleSports | E59: 2.25 | F59: B | G59: 200 | H59: 0 | I59: W | J59: VIP | L59: 250 | M59: =IF(ISNUMBER(#REF!),IF(L59<>"",#REF!+L59,""),L59) -> 250 | N59: 1.25 | O59: =IF(ISNUMBER(#REF!),IF(N59<>"",#REF!+N59,""),N59) -> 1.25
A60: 2016-10-02 | B60: Tennis | C60: M Mmoh | D60: William Hill | E60: 2 | F60: B | G60: 100 | H60: 0 | I60: L | J60: Standard | L60: -100 | M60: =IF(ISNUMBER(#REF!),IF(L60<>"",#REF!+L60,""),L60) -> -100 | N60: -1 | O60: =IF(ISNUMBER(#REF!),IF(N60<>"",#REF!+N60,""),N60) -> -1
A61: 2016-10-02 | B61: Tennis | C61: J Satral | D61: Pinnacle | E61: 3 | F61: B | G61: 1000 | H61: 0 | I61: W | J61: Premium Investment | L61: 2000 | M61: =IF(ISNUMBER(#REF!),IF(L61<>"",#REF!+L61,""),L61) -> 2000 | N61: 2 | O61: =IF(ISNUMBER(#REF!),IF(N61<>"",#REF!+N61,""),N61) -> 2
A62: 2016-10-01 | B62: Tennis | C62: Tim Smyczek -1.5 (Set Handicap) | D62: Pinnacle | E62: 2.219 | F62: B | G62: 100 | H62: 0 | I62: L | J62: VIP | L62: -100 | M62: =IF(ISNUMBER(#REF!),IF(L62<>"",#REF!+L62,""),L62) -> -100 | N62: -1 | O62: =IF(ISNUMBER(#REF!),IF(N62<>"",#REF!+N62,""),N62) -> -1
A63: 2016-09-30 | B63: Tennis | C63: K Khachanov | D63: Smarkets.com | E63: 2.6 | F63: B | G63: 100 | H63: 0.02 | I63: W | J63: VIP | L63: 156.8 | M63: =IF(ISNUMBER(#REF!),IF(L63<>"",#REF!+L63,""),L63) -> 156.8 | N63: 1.57 | O63: =IF(ISNUMBER(#REF!),IF(N63<>"",#REF!+N63,""),N63) -> 1.57
A64: 2016-09-30 | B64: Tennis | C64: M McDonald | D64: Smarkets.com | E64: 3.05 | F64: B | G64: 1000 | H64: 0.02 | I64: W | J64: VIP | L64: 2009 | M64: =IF(ISNUMBER(#REF!),IF(L64<>"",#REF!+L64,""),L64) -> 2009 | N64: 2.01 | O64: =IF(ISNUMBER(#REF!),IF(N64<>"",#REF!+N64,""),N64) -> 2.01
A65: 2016-09-30 | B65: Tennis | C65: D Medvedev | D65: Marathon Bet | E65: 1.444 | F65: B | G65: 1000 | H65: 0 | I65: L | J65: VIP | L65: -1000 | M65: =IF(ISNUMBER(#REF!),IF(L65<>"",#REF!+L65,""),L65) -> -1000 | N65: -1 | O65: =IF(ISNUMBER(#REF!),IF(N65<>"",#REF!+N65,""),N65) -> -1
A66: 2016-09-30 | B66: Tennis | C66: J Vesely | D66: BetVictor | E66: 4 | F66: B | G66: 200 | H66: 0 | I66: L | J66: VIP | L66: -200 | M66: =IF(ISNUMBER(#REF!),IF(L66<>"",#REF!+L66,""),L66) -> -200 | N66: -1 | O66: =IF(ISNUMBER(#REF!),IF(N66<>"",#REF!+N66,""),N66) -> -1
A67: 2016-09-29 | B67: Tennis | C67: F Volandri | D67: Paddy Power | E67: 2.2 | F67: B | G67: 100 | H67: 0 | I67: L | J67: Standard | L67: -100 | M67: =IF(ISNUMBER(#REF!),IF(L67<>"",#REF!+L67,""),L67) -> -100 | N67: -1 | O67: =IF(ISNUMBER(#REF!),IF(N67<>"",#REF!+N67,""),N67) -> -1
A68: 2016-09-29 | B68: Tennis | C68: D Brands +1.5 (Set Handicap) | D68: Paddy Power | E68: 1.5 | F68: B | G68: 500 | H68: 0 | I68: W | J68: VIP | L68: 250 | M68: =IF(ISNUMBER(#REF!),IF(L68<>"",#REF!+L68,""),L68) -> 250 | N68: 0.5 | O68: =IF(ISNUMBER(#REF!),IF(N68<>"",#REF!+N68,""),N68) -> 0.5
A69: 2016-09-29 | B69: Tennis | C69: D Wu +5.5 (Games Handicap) | D69: Pinnacle | E69: 2 | F69: B | G69: 100 | H69: 0 | I69: V | J69: Standard | L69: 0 | M69: =IF(ISNUMBER(#REF!),IF(L69<>"",#REF!+L69,""),L69) -> 0 | N69: 0 | O69: =IF(ISNUMBER(#REF!),IF(N69<>"",#REF!+N69,""),N69) -> 0
A70: 2016-09-29 | B70: Tennis | C70: D Wu | D70: Pinnacle | E70: 8.5 | F70: B | G70: 100 | H70: 0 | I70: V | J70: Premium Investment | L70: 0 | M70: =IF(ISNUMBER(#REF!),IF(L70<>"",#REF!+L70,""),L70) -> 0 | N70: 0 | O70: =IF(ISNUMBER(#REF!),IF(N70<>"",#REF!+N70,""),N70) -> 0
A71: 2016-09-29 | B71: Tennis | C71: C Zampieri | D71: Pinnacle | E71: 3.8 | F71: B | G71: 500 | H71: 0 | I71: W | J71: VIP | L71: 1400 | M71: =IF(ISNUMBER(#REF!),IF(L71<>"",#REF!+L71,""),L71) -> 1400 | N71: 2.8 | O71: =IF(ISNUMBER(#REF!),IF(N71<>"",#REF!+N71,""),N71) -> 2.8
A72: 2016-09-28 | B72: Tennis | C72: Y Nishioka | D72: Smarkets.com | E72: 3.4 | F72: B | G72: 300 | H72: 0.02 | I72: V | J72: VIP | L72: 0 | M72: =IF(ISNUMBER(#REF!),IF(L72<>"",#REF!+L72,""),L72) -> 0 | N72: 0 | O72: =IF(ISNUMBER(#REF!),IF(N72<>"",#REF!+N72,""),N72) -> 0
A73: 2016-09-27 | B73: Tennis | C73: K Kravchuk 2-0 (Set Betting | D73: Pinnacle | E73: 2.28 | F73: B | G73: 100 | H73: 0 | I73: L | J73: Standard | L73: -100 | M73: =IF(ISNUMBER(#REF!),IF(L73<>"",#REF!+L73,""),L73) -> -100 | N73: -1 | O73: =IF(ISNUMBER(#REF!),IF(N73<>"",#REF!+N73,""),N73) -> -1
A74: 2016-09-25 | B74: Tennis | C74: A Zverev +1.5 (Set Handicap) | D74: Pinnacle | E74: 2.01 | F74: B | G74: 100 | H74: 0 | I74: W | J74: VIP | L74: 101 | M74: =IF(ISNUMBER(#REF!),IF(L74<>"",#REF!+L74,""),L74) -> 101 | N74: 1.01 | O74: =IF(ISNUMBER(#REF!),IF(N74<>"",#REF!+N74,""),N74) -> 1.01
A75: 2016-09-25 | B75: Tennis | C75: H Chung -4.5 (Games Handicap) | D75: Marathon Bet | E75: 2 | F75: B | G75: 100 | H75: 0 | I75: W | J75: VIP | L75: 100 | M75: =IF(ISNUMBER(#REF!),IF(L75<>"",#REF!+L75,""),L75) -> 100 | N75: 1 | O75: =IF(ISNUMBER(#REF!),IF(N75<>"",#REF!+N75,""),N75) -> 1
A76: 2016-09-24 | B76: Tennis | C76: A Zverev | D76: Pinnacle | E76: 2.57 | F76: B | G76: 100 | H76: 0 | I76: W | J76: VIP | L76: 157 | M76: =IF(ISNUMBER(#REF!),IF(L76<>"",#REF!+L76,""),L76) -> 157 | N76: 1.57 | O76: =IF(ISNUMBER(#REF!),IF(N76<>"",#REF!+N76,""),N76) -> 1.57
A77: 2016-09-23 | B77: Tennis | C77: N Mahut | D77: Smarkets.com | E77: 2.96 | F77: B | G77: 1000 | H77: 0.02 | I77: L | J77: Standard | L77: -1000 | M77: =IF(ISNUMBER(#REF!),IF(L77<>"",#REF!+L77,""),L77) -> -1000 | N77: -1 | O77: =IF(ISNUMBER(#REF!),IF(N77<>"",#REF!+N77,""),N77) -> -1
A78: 2016-09-23 | B78: Tennis | C78: J Sousa | D78: Smarkets.com | E78: 3.3 | F78: B | G78: 800 | H78: 0.02 | I78: L | J78: VIP | L78: -800 | M78: =IF(ISNUMBER(#REF!),IF(L78<>"",#REF!+L78,""),L78) -> -800 | N78: -1 | O78: =IF(ISNUMBER(#REF!),IF(N78<>"",#REF!+N78,""),N78) -> -1
A79: 2016-09-22 | B79: Tennis | C79: J L Struff | D79: Pinnacle | E79: 4.25 | F79: B | G79: 500 | H79: 0 | I79: L | J79: VIP | L79: -500 | M79: =IF(ISNUMBER(#REF!),IF(L79<>"",#REF!+L79,""),L79) -> -500 | N79: -1 | O79: =IF(ISNUMBER(#REF!),IF(N79<>"",#REF!+N79,""),N79) -> -1
A80: 2016-09-20 | B80: Tennis | C80: E Donskoy | D80: Pinnacle | E80: 3 | F80: B | G80: 200 | H80: 0 | I80: L | J80: VIP | L80: -200 | M80: =IF(ISNUMBER(#REF!),IF(L80<>"",#REF!+L80,""),L80) -> -200 | N80: -1 | O80: =IF(ISNUMBER(#REF!),IF(N80<>"",#REF!+N80,""),N80) -> -1
A81: 2016-09-20 | B81: Tennis | C81: Michal Konecny | D81: Pinnacle | E81: 3.4 | F81: B | G81: 100 | H81: 0 | I81: L | J81: VIP | L81: -100 | M81: =IF(ISNUMBER(#REF!),IF(L81<>"",#REF!+L81,""),L81) -> -100 | N81: -1 | O81: =IF(ISNUMBER(#REF!),IF(N81<>"",#REF!+N81,""),N81) -> -1
A82: 2016-09-18 | B82: Tennis | C82: K Edmund | D82: Pinnacle | E82: 6.2 | F82: B | G82: 500 | H82: 0 | I82: V | J82: Standard | L82: 0 | M82: =IF(ISNUMBER(#REF!),IF(L82<>"",#REF!+L82,""),L82) -> 0 | N82: 0 | O82: =IF(ISNUMBER(#REF!),IF(N82<>"",#REF!+N82,""),N82) -> 0
A83: 2016-09-17 | B83: Tennis | C83: F Tiafoe | D83: Pinnacle | E83: 1.846 | F83: B | G83: 200 | H83: 0 | I83: L | J83: VIP | L83: -200 | M83: =IF(ISNUMBER(#REF!),IF(L83<>"",#REF!+L83,""),L83) -> -200 | N83: -1 | O83: =IF(ISNUMBER(#REF!),IF(N83<>"",#REF!+N83,""),N83) -> -1
A84: 2016-09-17 | B84: Tennis | C84: H Moriya | D84: Pinnacle | E84: 4.609 | F84: B | G84: 100 | H84: 0 | I84: W | J84: VIP | L84: 360.9 | M84: =IF(ISNUMBER(#REF!),IF(L84<>"",#REF!+L84,""),L84) -> 360.9 | N84: 3.61 | O84: =IF(ISNUMBER(#REF!),IF(N84<>"",#REF!+N84,""),N84) -> 3.61
A85: 2016-09-16 | B85: Tennis | C85: M Sieber | D85: Unibet | E85: 3.75 | F85: B | G85: 1000 | H85: 0 | I85: L | J85: VIP | L85: -1000 | M85: =IF(ISNUMBER(#REF!),IF(L85<>"",#REF!+L85,""),L85) -> -1000 | N85: -1 | O85: =IF(ISNUMBER(#REF!),IF(N85<>"",#REF!+N85,""),N85) -> -1
A86: 2016-09-15 | B86: Tennis | C86: C Ruud | D86: Marathon Bet | E86: 2.2 | F86: B | G86: 1000 | H86: 0 | I86: L | J86: VIP | L86: -1000 | M86: =IF(ISNUMBER(#REF!),IF(L86<>"",#REF!+L86,""),L86) -> -1000 | N86: -1 | O86: =IF(ISNUMBER(#REF!),IF(N86<>"",#REF!+N86,""),N86) -> -1
A87: 2016-09-15 | B87: Tennis | C87: B Kavcic | D87: Smarkets.com | E87: 3.1 | F87: B | G87: 500 | H87: 0.02 | I87: L | J87: VIP | L87: -500 | M87: =IF(ISNUMBER(#REF!),IF(L87<>"",#REF!+L87,""),L87) -> -500 | N87: -1 | O87: =IF(ISNUMBER(#REF!),IF(N87<>"",#REF!+N87,""),N87) -> -1
A88: 2016-09-14 | B88: Tennis | C88: E Sema | D88: Pinnacle | E88: 5.32 | F88: B | G88: 200 | H88: 0 | I88: L | J88: VIP | L88: -200 | M88: =IF(ISNUMBER(#REF!),IF(L88<>"",#REF!+L88,""),L88) -> -200 | N88: -1 | O88: =IF(ISNUMBER(#REF!),IF(N88<>"",#REF!+N88,""),N88) -> -1
A89: 2016-09-14 | B89: Tennis | C89: D Elahi Galan | D89: William Hill | E89: 6 | F89: B | G89: 200 | H89: 0 | I89: L | J89: Standard | L89: -200 | M89: =IF(ISNUMBER(#REF!),IF(L89<>"",#REF!+L89,""),L89) -> -200 | N89: -1 | O89: =IF(ISNUMBER(#REF!),IF(N89<>"",#REF!+N89,""),N89) -> -1
A90: 2016-09-12 | B90: Tennis | C90: M Viola | D90: Pinnacle | E90: 2.17 | F90: B | G90: 100 | H90: 0 | I90: L | J90: VIP | L90: -100 | M90: =IF(ISNUMBER(#REF!),IF(L90<>"",#REF!+L90,""),L90) -> -100 | N90: -1 | O90: =IF(ISNUMBER(#REF!),IF(N90<>"",#REF!+N90,""),N90) -> -1
A91: 2016-09-11 | B91: Tennis | C91: S Wawrinka | D91: Smarkets.com | E91: 3.55 | F91: B | G91: 600 | H91: 0.02 | I91: W | J91: VIP | L91: 1499.4 | M91: =IF(ISNUMBER(#REF!),IF(L91<>"",#REF!+L91,""),L91) -> 1499.4 | N91: 2.5 | O91: =IF(ISNUMBER(#REF!),IF(N91<>"",#REF!+N91,""),N91) -> 2.5
A92: 2016-09-11 | B92: Tennis | C92: J De Loore | D92: Smarkets.com | E92: 2.92 | F92: B | G92: 500 | H92: 0.02 | I92: L | J92: VIP | L92: -500 | M92: =IF(ISNUMBER(#REF!),IF(L92<>"",#REF!+L92,""),L92) -> -500 | N92: -1 | O92: =IF(ISNUMBER(#REF!),IF(N92<>"",#REF!+N92,""),N92) -> -1
A93: 2016-09-10 | B93: Tennis | C93: K Pliskova | D93: Pinnacle | E93: 2.56 | F93: B | G93: 300 | H93: 0 | I93: L | J93: VIP | L93: -300 | M93: =IF(ISNUMBER(#REF!),IF(L93<>"",#REF!+L93,""),L93) -> -300 | N93: -1 | O93: =IF(ISNUMBER(#REF!),IF(N93<>"",#REF!+N93,""),N93) -> -1
A94: 2016-09-10 | B94: Tennis | C94: A Pavlasek | D94: Smarkets.com | E94: 3.3 | F94: B | G94: 200 | H94: 0.02 | I94: L | J94: VIP | L94: -200 | M94: =IF(ISNUMBER(#REF!),IF(L94<>"",#REF!+L94,""),L94) -> -200 | N94: -1 | O94: =IF(ISNUMBER(#REF!),IF(N94<>"",#REF!+N94,""),N94) -> -1
A95: 2016-09-08 | B95: Tennis | C95: G Monfils +6.5 (Games Handicap) | D95: Matchbook | E95: 2.03 | F95: B | G95: 100 | H95: 0.01 | I95: L | J95: VIP | L95: -100 | M95: =IF(ISNUMBER(#REF!),IF(L95<>"",#REF!+L95,""),L95) -> -100 | N95: -1 | O95: =IF(ISNUMBER(#REF!),IF(N95<>"",#REF!+N95,""),N95) -> -1
A96: 2016-09-07 | B96: Tennis | C96: K Nishikori | D96: Smarkets.com | E96: 6.398 | F96: B | G96: 1000 | H96: 0.02 | I96: W | J96: VIP | L96: 5290.04 | M96: =IF(ISNUMBER(#REF!),IF(L96<>"",#REF!+L96,""),L96) -> 5290.04 | N96: 5.29 | O96: =IF(ISNUMBER(#REF!),IF(N96<>"",#REF!+N96,""),N96) -> 5.29
A97: 2016-09-06 | B97: Tennis | C97: J W Tsonga | D97: BetVictor | E97: 6.7 | F97: B | G97: 1000 | H97: 0 | I97: L | J97: VIP | L97: -1000 | M97: =IF(ISNUMBER(#REF!),IF(L97<>"",#REF!+L97,""),L97) -> -1000 | N97: -1 | O97: =IF(ISNUMBER(#REF!),IF(N97<>"",#REF!+N97,""),N97) -> -1
A98: 2016-09-05 | B98: Tennis | C98: I Marchenko +7.5 (Games Handicap) | D98: Unibet | E98: 1.93 | F98: B | G98: 1000 | H98: 0 | I98: L | J98: VIP | L98: -1000 | M98: =IF(ISNUMBER(#REF!),IF(L98<>"",#REF!+L98,""),L98) -> -1000 | N98: -1 | O98: =IF(ISNUMBER(#REF!),IF(N98<>"",#REF!+N98,""),N98) -> -1
A99: 2016-09-05 | B99: Tennis | C99: K Edmund +2.5 (Set Handicap) | D99: Unibet | E99: 2.5 | F99: B | G99: 300 | H99: 0 | I99: L | J99: VIP | L99: -300 | M99: =IF(ISNUMBER(#REF!),IF(L99<>"",#REF!+L99,""),L99) -> -300 | N99: -1 | O99: =IF(ISNUMBER(#REF!),IF(N99<>"",#REF!+N99,""),N99) -> -1
A100: 2016-09-04 | B100: Tennis | C100: M Baghdatis +2.5 (Set Handicap) | D100: Ladbrokes | E100: 1.85 | F100: B | G100: 200 | H100: 0 | I100: L | J100: VIP | L100: -200 | M100: =IF(ISNUMBER(#REF!),IF(L100<>"",#REF!+L100,""),L100) -> -200 | N100: -1 | O100: =IF(ISNUMBER(#REF!),IF(N100<>"",#REF!+N100,""),N100) -> -1
A101: 2016-09-03 | B101: Tennis | C101: D Evans | D101: Smarkets.com | E101: 8 | F101: B | G101: 100 | H101: 0.01 | I101: L | J101: VIP | L101: -100 | M101: =IF(ISNUMBER(#REF!),IF(L101<>"",#REF!+L101,""),L101) -> -100 | N101: -1 | O101: =IF(ISNUMBER(#REF!),IF(N101<>"",#REF!+N101,""),N101) -> -1
A102: 2016-09-03 | B102: Tennis | C102: K Edmund | D102: Matchbook | E102: 3.4 | F102: B | G102: 1000 | H102: 0.01 | I102: W | J102: VIP | L102: 2376 | M102: =IF(ISNUMBER(#REF!),IF(L102<>"",#REF!+L102,""),L102) -> 2376 | N102: 2.38 | O102: =IF(ISNUMBER(#REF!),IF(N102<>"",#REF!+N102,""),N102) -> 2.38
A103: 2016-09-02 | B103: Tennis | C103: G Melzer | D103: Pinnacle | E103: 1.53 | F103: B | G103: 1000 | H103: 0 | I103: L | J103: VIP | L103: -1000 | M103: =IF(ISNUMBER(#REF!),IF(L103<>"",#REF!+L103,""),L103) -> -1000 | N103: -1 | O103: =IF(ISNUMBER(#REF!),IF(N103<>"",#REF!+N103,""),N103) -> -1
A104: 2016-09-02 | B104: Tennis | C104: S Johnson | D104: Marathon Bet | E104: 3.722 | F104: B | G104: 300 | H104: 0 | I104: L | J104: VIP | L104: -300 | M104: =IF(ISNUMBER(#REF!),IF(L104<>"",#REF!+L104,""),L104) -> -300 | N104: -1 | O104: =IF(ISNUMBER(#REF!),IF(N104<>"",#REF!+N104,""),N104) -> -1
A105: 2016-09-01 | B105: Tennis | C105: M Ymer | D105: BoyleSports | E105: 3 | F105: B | G105: 200 | H105: 0 | I105: L | J105: VIP | L105: -200 | M105: =IF(ISNUMBER(#REF!),IF(L105<>"",#REF!+L105,""),L105) -> -200 | N105: -1 | O105: =IF(ISNUMBER(#REF!),IF(N105<>"",#REF!+N105,""),N105) -> -1
A106: 2016-08-31 | B106: Tennis | C106: C Wozniacki | D106: Marathon Bet | E106: 3.063 | F106: B | G106: 100 | H106: 0 | I106: W | J106: VIP | L106: 206.3 | M106: =IF(ISNUMBER(#REF!),IF(L106<>"",#REF!+L106,""),L106) -> 206.3 | N106: 2.06 | O106: =IF(ISNUMBER(#REF!),IF(N106<>"",#REF!+N106,""),N106) -> 2.06
A107: 2016-08-29 | B107: Tennis | C107: G Muller | D107: Matchbook | E107: 4.35 | F107: B | G107: 200 | H107: 0.01 | I107: L | J107: Standard | L107: -200 | M107: =IF(ISNUMBER(#REF!),IF(L107<>"",#REF!+L107,""),L107) -> -200 | N107: -1 | O107: =IF(ISNUMBER(#REF!),IF(N107<>"",#REF!+N107,""),N107) -> -1
A108: 2016-08-29 | B108: Tennis | C108: J Donaldson | D108: BoyleSports | E108: 6.5 | F108: B | G108: 200 | H108: 0 | I108: W | J108: VIP | L108: 1100 | M108: =IF(ISNUMBER(#REF!),IF(L108<>"",#REF!+L108,""),L108) -> 1100 | N108: 5.5 | O108: =IF(ISNUMBER(#REF!),IF(N108<>"",#REF!+N108,""),N108) -> 5.5
A109: 2016-08-27 | B109: Tennis | C109: E Svitolina +4.5 (Games Handicap) | D109: Marathon Bet | E109: 1.9375 | F109: B | G109: 200 | H109: 0 | I109: L | J109: VIP | L109: -200 | M109: =IF(ISNUMBER(#REF!),IF(L109<>"",#REF!+L109,""),L109) -> -200 | N109: -1 | O109: =IF(ISNUMBER(#REF!),IF(N109<>"",#REF!+N109,""),N109) -> -1
A110: 2016-08-27 | B110: Tennis | C110: J Millman | D110: Marathon Bet | E110: 2.024 | F110: B | G110: 100 | H110: 0 | I110: L | J110: VIP | L110: -100 | M110: =IF(ISNUMBER(#REF!),IF(L110<>"",#REF!+L110,""),L110) -> -100 | N110: -1 | O110: =IF(ISNUMBER(#REF!),IF(N110<>"",#REF!+N110,""),N110) -> -1
A111: 2016-08-26 | B111: Tennis | C111: J Eysseric | D111: Marathon Bet | E111: 2.66 | F111: B | G111: 100 | H111: 0 | I111: W | J111: VIP | L111: 166 | M111: =IF(ISNUMBER(#REF!),IF(L111<>"",#REF!+L111,""),L111) -> 166 | N111: 1.66 | O111: =IF(ISNUMBER(#REF!),IF(N111<>"",#REF!+N111,""),N111) -> 1.66
A112: 2016-08-25 | B112: Tennis | C112: J Millman | D112: Smarkets.com | E112: 4.2 | F112: B | G112: 500 | H112: 0.02 | I112: W | J112: VIP | L112: 1568 | M112: =IF(ISNUMBER(#REF!),IF(L112<>"",#REF!+L112,""),L112) -> 1568 | N112: 3.14 | O112: =IF(ISNUMBER(#REF!),IF(N112<>"",#REF!+N112,""),N112) -> 3.14
A113: 2016-08-25 | B113: Tennis | C113: Fabiano De Paula | D113: Smarkets.com | E113: 8 | F113: B | G113: 400 | H113: 0.02 | I113: L | J113: VIP | L113: -400 | M113: =IF(ISNUMBER(#REF!),IF(L113<>"",#REF!+L113,""),L113) -> -400 | N113: -1 | O113: =IF(ISNUMBER(#REF!),IF(N113<>"",#REF!+N113,""),N113) -> -1
A114: 2016-08-24 | B114: Tennis | C114: S Robert | D114: Smarkets.com | E114: 5.1 | F114: B | G114: 300 | H114: 0.02 | I114: L | J114: VIP | L114: -300 | M114: =IF(ISNUMBER(#REF!),IF(L114<>"",#REF!+L114,""),L114) -> -300 | N114: -1 | O114: =IF(ISNUMBER(#REF!),IF(N114<>"",#REF!+N114,""),N114) -> -1
A115: 2016-08-23 | B115: Tennis | C115: B Trinker | D115: Smarkets.com | E115: 5.6 | F115: B | G115: 100 | H115: 0.02 | I115: L | J115: VIP | L115: -100 | M115: =IF(ISNUMBER(#REF!),IF(L115<>"",#REF!+L115,""),L115) -> -100 | N115: -1 | O115: =IF(ISNUMBER(#REF!),IF(N115<>"",#REF!+N115,""),N115) -> -1
A116: 2016-08-22 | B116: Tennis | C116: J McGee | D116: Matchbook | E116: 2.42 | F116: B | G116: 100 | H116: 0.01 | I116: L | J116: VIP | L116: -100 | M116: =IF(ISNUMBER(#REF!),IF(L116<>"",#REF!+L116,""),L116) -> -100 | N116: -1 | O116: =IF(ISNUMBER(#REF!),IF(N116<>"",#REF!+N116,""),N116) -> -1
A117: 2016-08-21 | B117: Tennis | C117: S Rogers | D117: Matchbook | E117: 3.2 | F117: B | G117: 300 | H117: 0.01 | I117: W | J117: VIP | L117: 653.4 | M117: =IF(ISNUMBER(#REF!),IF(L117<>"",#REF!+L117,""),L117) -> 653.4 | N117: 2.18 | O117: =IF(ISNUMBER(#REF!),IF(N117<>"",#REF!+N117,""),N117) -> 2.18
A118: 2016-08-21 | B118: Tennis | C118: M Raonic | D118: Ladbrokes | E118: 3.25 | F118: B | G118: 200 | H118: 0 | I118: L | J118: VIP | L118: -200 | M118: =IF(ISNUMBER(#REF!),IF(L118<>"",#REF!+L118,""),L118) -> -200 | N118: -1 | O118: =IF(ISNUMBER(#REF!),IF(N118<>"",#REF!+N118,""),N118) -> -1
A119: 2016-08-20 | B119: Tennis | C119: B Tomic | D119: Matchbook | E119: 6.6 | F119: B | G119: 100 | H119: 0.01 | I119: L | J119: VIP | L119: -100 | M119: =IF(ISNUMBER(#REF!),IF(L119<>"",#REF!+L119,""),L119) -> -100 | N119: -1 | O119: =IF(ISNUMBER(#REF!),IF(N119<>"",#REF!+N119,""),N119) -> -1
A120: 2016-08-19 | B120: Tennis | C120: M Sieber | D120: Pinnacle | E120: 6.5 | F120: B | G120: 100 | H120: 0 | I120: L | J120: VIP | L120: -100 | M120: =IF(ISNUMBER(#REF!),IF(L120<>"",#REF!+L120,""),L120) -> -100 | N120: -1 | O120: =IF(ISNUMBER(#REF!),IF(N120<>"",#REF!+N120,""),N120) -> -1
A121: 2016-08-18 | B121: Tennis | C121: B Tomic | D121: Smarkets.com | E121: 4.1 | F121: B | G121: 200 | H121: 0.02 | I121: W | J121: VIP | L121: 607.6 | M121: =IF(ISNUMBER(#REF!),IF(L121<>"",#REF!+L121,""),L121) -> 607.6 | N121: 3.04 | O121: =IF(ISNUMBER(#REF!),IF(N121<>"",#REF!+N121,""),N121) -> 3.04
A122: 2016-08-17 | B122: Tennis | C122: J Donaldson | D122: Smarkets.com | E122: 6.2 | F122: B | G122: 100 | H122: 0.02 | I122: L | J122: VIP | L122: -100 | M122: =IF(ISNUMBER(#REF!),IF(L122<>"",#REF!+L122,""),L122) -> -100 | N122: -1 | O122: =IF(ISNUMBER(#REF!),IF(N122<>"",#REF!+N122,""),N122) -> -1
A123: 2016-08-15 | B123: Tennis | C123: L Pouille | D123: Marathon Bet | E123: 4.3 | F123: B | G123: 1000 | H123: 0 | I123: L | J123: VIP | L123: -1000 | M123: =IF(ISNUMBER(#REF!),IF(L123<>"",#REF!+L123,""),L123) -> -1000 | N123: -1 | O123: =IF(ISNUMBER(#REF!),IF(N123<>"",#REF!+N123,""),N123) -> -1
A124: 2016-08-14 | B124: Tennis | C124: Juan M Del Potro | D124: Marathon Bet | E124: 4.5 | F124: B | G124: 900 | H124: 0 | I124: L | J124: VIP | L124: -900 | M124: =IF(ISNUMBER(#REF!),IF(L124<>"",#REF!+L124,""),L124) -> -900 | N124: -1 | O124: =IF(ISNUMBER(#REF!),IF(N124<>"",#REF!+N124,""),N124) -> -1
A125: 2016-08-13 | B125: Tennis | C125: K Nishikori | D125: Coral | E125: 3.5 | F125: B | G125: 700 | H125: 0 | I125: L | J125: VIP | L125: -700 | M125: =IF(ISNUMBER(#REF!),IF(L125<>"",#REF!+L125,""),L125) -> -700 | N125: -1 | O125: =IF(ISNUMBER(#REF!),IF(N125<>"",#REF!+N125,""),N125) -> -1
A126: 2016-08-13 | B126: Tennis | C126: Pablo C Busta | D126: Smarkets.com | E126: 2.74 | F126: B | G126: 500 | H126: 0.02 | I126: L | J126: VIP | L126: -500 | M126: =IF(ISNUMBER(#REF!),IF(L126<>"",#REF!+L126,""),L126) -> -500 | N126: -1 | O126: =IF(ISNUMBER(#REF!),IF(N126<>"",#REF!+N126,""),N126) -> -1
A127: 2016-08-12 | B127: Tennis | C127: R Bautista-Agut | D127: Sportingbet | E127: 2.35 | F127: B | G127: 200 | H127: 0 | I127: L | J127: VIP | L127: -200 | M127: =IF(ISNUMBER(#REF!),IF(L127<>"",#REF!+L127,""),L127) -> -200 | N127: -1 | O127: =IF(ISNUMBER(#REF!),IF(N127<>"",#REF!+N127,""),N127) -> -1
A128: 2016-08-12 | B128: Tennis | C128: Z Zhang | D128: Pinnacle | E128: 2.889 | F128: B | G128: 100 | H128: 0 | I128: L | J128: VIP | L128: -100 | M128: =IF(ISNUMBER(#REF!),IF(L128<>"",#REF!+L128,""),L128) -> -100 | N128: -1 | O128: =IF(ISNUMBER(#REF!),IF(N128<>"",#REF!+N128,""),N128) -> -1
A129: 2016-08-11 | B129: Tennis | C129: T Bellucci | D129: Smarkets.com | E129: 5.1 | F129: B | G129: 400 | H129: 0.02 | I129: W | J129: VIP | L129: 1607.2 | M129: =IF(ISNUMBER(#REF!),IF(L129<>"",#REF!+L129,""),L129) -> 1607.2 | N129: 4.02 | O129: =IF(ISNUMBER(#REF!),IF(N129<>"",#REF!+N129,""),N129) -> 4.02
A130: 2016-08-10 | B130: Tennis | C130: J Satral | D130: Pinnacle | E130: 3 | F130: B | G130: 200 | H130: 0 | I130: L | J130: Standard | L130: -200 | M130: =IF(ISNUMBER(#REF!),IF(L130<>"",#REF!+L130,""),L130) -> -200 | N130: -1 | O130: =IF(ISNUMBER(#REF!),IF(N130<>"",#REF!+N130,""),N130) -> -1
A131: 2016-08-10 | B131: Tennis | C131: A Weintraub | D131: Marathon Bet | E131: 3.42 | F131: B | G131: 100 | H131: 0 | I131: L | J131: Elite | L131: -100 | M131: =IF(ISNUMBER(#REF!),IF(L131<>"",#REF!+L131,""),L131) -> -100 | N131: -1 | O131: =IF(ISNUMBER(#REF!),IF(N131<>"",#REF!+N131,""),N131) -> -1
A132: 2016-08-08 | B132: Tennis | C132: J Sousa +4.5 (Games Handicap) | D132: Marathon Bet | E132: 1.965 | F132: B | G132: 100 | H132: 0 | I132: W | J132: Elite | L132: 96.5 | M132: =IF(ISNUMBER(#REF!),IF(L132<>"",#REF!+L132,""),L132) -> 96.5 | N132: 0.97 | O132: =IF(ISNUMBER(#REF!),IF(N132<>"",#REF!+N132,""),N132) -> 0.97
A133: 2016-08-08 | B133: Tennis | C133: M Michalicka | D133: Pinnacle | E133: 5.39 | F133: B | G133: 100 | H133: 0 | I133: W | J133: VIP | L133: 439 | M133: =IF(ISNUMBER(#REF!),IF(L133<>"",#REF!+L133,""),L133) -> 439 | N133: 4.39 | O133: =IF(ISNUMBER(#REF!),IF(N133<>"",#REF!+N133,""),N133) -> 4.39
A134: 2016-08-07 | B134: Tennis | C134: J Isner | D134: Coral | E134: 2 | F134: B | G134: 200 | H134: 0 | I134: L | J134: Elite | L134: -200 | M134: =IF(ISNUMBER(#REF!),IF(L134<>"",#REF!+L134,""),L134) -> -200 | N134: -1 | O134: =IF(ISNUMBER(#REF!),IF(N134<>"",#REF!+N134,""),N134) -> -1
A135: 2016-08-07 | B135: Tennis | C135: A De Greef | D135: Pinnacle | E135: 3.74 | F135: B | G135: 200 | H135: 0 | I135: W | J135: Elite | L135: 548 | M135: =IF(ISNUMBER(#REF!),IF(L135<>"",#REF!+L135,""),L135) -> 548 | N135: 2.74 | O135: =IF(ISNUMBER(#REF!),IF(N135<>"",#REF!+N135,""),N135) -> 2.74
A136: 2016-08-06 | B136: Tennis | C136: Y Uchiyama | D136: Coral | E136: 3.5 | F136: B | G136: 100 | H136: 0 | I136: L | J136: VIP | L136: -100 | M136: =IF(ISNUMBER(#REF!),IF(L136<>"",#REF!+L136,""),L136) -> -100 | N136: -1 | O136: =IF(ISNUMBER(#REF!),IF(N136<>"",#REF!+N136,""),N136) -> -1
A137: 2016-08-04 | B137: Tennis | C137: J Isner | D137: Betfair | E137: 1.32 | F137: B | G137: 100 | H137: 0 | I137: W | J137: Elite | L137: 32 | M137: =IF(ISNUMBER(#REF!),IF(L137<>"",#REF!+L137,""),L137) -> 32 | N137: 0.32 | O137: =IF(ISNUMBER(#REF!),IF(N137<>"",#REF!+N137,""),N137) -> 0.32
A138: 2016-08-04 | B138: Tennis | C138: Y Nishioka | D138: Pinnacle | E138: 3.263 | F138: B | G138: 100 | H138: 0 | I138: W | J138: Free | L138: 226.3 | M138: =IF(ISNUMBER(#REF!),IF(L138<>"",#REF!+L138,""),L138) -> 226.3 | N138: 2.26 | O138: =IF(ISNUMBER(#REF!),IF(N138<>"",#REF!+N138,""),N138) -> 2.26
A139: 2016-08-03 | B139: Tennis | C139: R Opelka +1.5 (Set Handicap) | D139: BetVictor | E139: 2.9 | F139: B | G139: 100 | H139: 0 | I139: W | J139: Elite | L139: 190 | M139: =IF(ISNUMBER(#REF!),IF(L139<>"",#REF!+L139,""),L139) -> 190 | N139: 1.9 | O139: =IF(ISNUMBER(#REF!),IF(N139<>"",#REF!+N139,""),N139) -> 1.9
A140: 2016-08-02 | B140: Tennis | C140: Z Zhang | D140: Marathon Bet | E140: 2.91 | F140: B | G140: 100 | H140: 0 | I140: W | J140: VIP | L140: 191 | M140: =IF(ISNUMBER(#REF!),IF(L140<>"",#REF!+L140,""),L140) -> 191 | N140: 1.91 | O140: =IF(ISNUMBER(#REF!),IF(N140<>"",#REF!+N140,""),N140) -> 1.91
A141: 2016-08-01 | B141: Tennis | C141: V Galovic | D141: Coral | E141: 3.75 | F141: B | G141: 800 | H141: 0 | I141: W | J141: Elite | L141: 2200 | M141: =IF(ISNUMBER(#REF!),IF(L141<>"",#REF!+L141,""),L141) -> 2200 | N141: 2.75 | O141: =IF(ISNUMBER(#REF!),IF(N141<>"",#REF!+N141,""),N141) -> 2.75
A142: 2016-07-31 | B142: Tennis | C142: K Nishikori +1.5 (Set Handicap) | D142: Pinnacle | E142: 2.75 | F142: B | G142: 500 | H142: 0 | I142: L | J142: Elite | L142: -500 | M142: =IF(ISNUMBER(#REF!),IF(L142<>"",#REF!+L142,""),L142) -> -500 | N142: -1 | O142: =IF(ISNUMBER(#REF!),IF(N142<>"",#REF!+N142,""),N142) -> -1
A143: 2016-07-31 | B143: Tennis | C143: G Monfils +1.5 (Set Handicap) | D143: William Hill | E143: 3.25 | F143: B | G143: 200 | H143: 0 | I143: L | J143: VIP | L143: -200 | M143: =IF(ISNUMBER(#REF!),IF(L143<>"",#REF!+L143,""),L143) -> -200 | N143: -1 | O143: =IF(ISNUMBER(#REF!),IF(N143<>"",#REF!+N143,""),N143) -> -1
A144: 2016-07-30 | B144: Tennis | C144: Juan C M Aguilar | D144: Smarkets.com | E144: 3.8 | F144: B | G144: 100 | H144: 0.02 | I144: L | J144: Elite | L144: -100 | M144: =IF(ISNUMBER(#REF!),IF(L144<>"",#REF!+L144,""),L144) -> -100 | N144: -1 | O144: =IF(ISNUMBER(#REF!),IF(N144<>"",#REF!+N144,""),N144) -> -1
A145: 2016-07-30 | B145: Tennis | C145: G Monfils | D145: Pinnacle | E145: 4.3 | F145: B | G145: 200 | H145: 0 | I145: W | J145: VIP | L145: 660 | M145: =IF(ISNUMBER(#REF!),IF(L145<>"",#REF!+L145,""),L145) -> 660 | N145: 3.3 | O145: =IF(ISNUMBER(#REF!),IF(N145<>"",#REF!+N145,""),N145) -> 3.3
A146: 2016-07-28 | B146: Tennis | C146: B Westerhof | D146: Pinnacle | E146: 4.5 | F146: B | G146: 100 | H146: 0 | I146: L | J146: Elite | L146: -100 | M146: =IF(ISNUMBER(#REF!),IF(L146<>"",#REF!+L146,""),L146) -> -100 | N146: -1 | O146: =IF(ISNUMBER(#REF!),IF(N146<>"",#REF!+N146,""),N146) -> -1
A147: 2016-07-28 | B147: Tennis | C147: D Nguyen | D147: Smarkets.com | E147: 3.25 | F147: B | G147: 100 | H147: 0.02 | I147: W | J147: Free | L147: 220.5 | M147: =IF(ISNUMBER(#REF!),IF(L147<>"",#REF!+L147,""),L147) -> 220.5 | N147: 2.21 | O147: =IF(ISNUMBER(#REF!),IF(N147<>"",#REF!+N147,""),N147) -> 2.21
A148: 2016-07-27 | B148: Tennis | C148: R Harrison | D148: Smarkets.com | E148: 5 | F148: B | G148: 250 | H148: 0.02 | I148: W | J148: VIP | L148: 980 | M148: =IF(ISNUMBER(#REF!),IF(L148<>"",#REF!+L148,""),L148) -> 980 | N148: 3.92 | O148: =IF(ISNUMBER(#REF!),IF(N148<>"",#REF!+N148,""),N148) -> 3.92
A149: 2016-07-26 | B149: Tennis | C149: A Zverev | D149: Ladbrokes | E149: 1.38 | F149: B | G149: 100 | H149: 0 | I149: L | J149: Elite | L149: -100 | M149: =IF(ISNUMBER(#REF!),IF(L149<>"",#REF!+L149,""),L149) -> -100 | N149: -1 | O149: =IF(ISNUMBER(#REF!),IF(N149<>"",#REF!+N149,""),N149) -> -1
A150: 2016-07-25 | B150: Tennis | C150: G Muller -1.5 (Set Handicap) | D150: Pinnacle | E150: 1.842 | F150: B | G150: 150 | H150: 0 | I150: W | J150: VIP | L150: 126.3 | M150: =IF(ISNUMBER(#REF!),IF(L150<>"",#REF!+L150,""),L150) -> 126.3 | N150: 0.84 | O150: =IF(ISNUMBER(#REF!),IF(N150<>"",#REF!+N150,""),N150) -> 0.84
A151: 2016-07-24 | B151: Tennis | C151: J Donaldson -1.5 (Set Handicap) | D151: Pinnacle | E151: 1.95 | F151: B | G151: 30 | H151: 0 | I151: W | J151: VIP | L151: 28.5 | M151: =IF(ISNUMBER(#REF!),IF(L151<>"",#REF!+L151,""),L151) -> 28.5 | N151: 0.95 | O151: =IF(ISNUMBER(#REF!),IF(N151<>"",#REF!+N151,""),N151) -> 0.95
A152: 2016-07-24 | B152: Tennis | C152: J Donaldson | D152: Smarkets.com | E152: 1.38 | F152: B | G152: 100 | H152: 0.02 | I152: W | J152: Elite | L152: 37.24 | M152: =IF(ISNUMBER(#REF!),IF(L152<>"",#REF!+L152,""),L152) -> 37.24 | N152: 0.37 | O152: =IF(ISNUMBER(#REF!),IF(N152<>"",#REF!+N152,""),N152) -> 0.37
A153: 2016-07-23 | B153: Tennis | C153: A Krajicek | D153: Smarkets.com | E153: 1.45 | F153: B | G153: 100 | H153: 0.02 | I153: W | J153: Elite | L153: 44.1 | M153: =IF(ISNUMBER(#REF!),IF(L153<>"",#REF!+L153,""),L153) -> 44.1 | N153: 0.44 | O153: =IF(ISNUMBER(#REF!),IF(N153<>"",#REF!+N153,""),N153) -> 0.44
A154: 2016-07-23 | B154: Tennis | C154: L Davis | D154: Pinnacle | E154: 2.5 | F154: B | G154: 100 | H154: 0 | I154: W | J154: VIP | L154: 150 | M154: =IF(ISNUMBER(#REF!),IF(L154<>"",#REF!+L154,""),L154) -> 150 | N154: 1.5 | O154: =IF(ISNUMBER(#REF!),IF(N154<>"",#REF!+N154,""),N154) -> 1.5
A155: 2016-07-22 | B155: Tennis | C155: M Krueger -1.5 (Set Handicap) | D155: Marathon Bet | E155: 2.69 | F155: B | G155: 100 | H155: 0 | I155: W | J155: Free | L155: 169 | M155: =IF(ISNUMBER(#REF!),IF(L155<>"",#REF!+L155,""),L155) -> 169 | N155: 1.69 | O155: =IF(ISNUMBER(#REF!),IF(N155<>"",#REF!+N155,""),N155) -> 1.69
A156: 2016-07-22 | B156: Tennis | C156: P Carreno-Busta | D156: Coral | E156: 1.4 | F156: B | G156: 50 | H156: 0 | I156: L | J156: VIP | L156: -50 | M156: =IF(ISNUMBER(#REF!),IF(L156<>"",#REF!+L156,""),L156) -> -50 | N156: -1 | O156: =IF(ISNUMBER(#REF!),IF(N156<>"",#REF!+N156,""),N156) -> -1
A157: 2016-07-21 | B157: Tennis | C157: T Monteiro | D157: Pinnacle | E157: 4.3 | F157: B | G157: 1000 | H157: 0 | I157: W | J157: Elite | L157: 3300 | M157: =IF(ISNUMBER(#REF!),IF(L157<>"",#REF!+L157,""),L157) -> 3300 | N157: 3.3 | O157: =IF(ISNUMBER(#REF!),IF(N157<>"",#REF!+N157,""),N157) -> 3.3

Sheet Sports and Bookies
A1: Sports (Tennis Tips UK)
A3: Sport | B3: Staked | C3: P/L | D3: ROI | E3: Level Staked | F3: P/L | G3: ROI | J3: Bookmaker | K3: Deposited | L3: Withdrawn | M3: Pending | N3: P/L | O3: Balance
A4: Soccer | B4: =SUMIF(INDIRECT("Bets!B18"):INDIRECT("Bets!B10000"),A4,INDIRECT("Bets!G18"):INDIRECT("Bets!G10000")) -> 0 | C4: =SUMIF(INDIRECT("Bets!B18"):INDIRECT("Bets!B10000"),A4,INDIRECT("Bets!L18"):INDIRECT("Bets!L10000")) -> 0 | D4: =IF(B4<>0,C4/B4,0) -> 0 | E4: =(COUNTIF(INDIRECT("Bets!B18"):INDIRECT("Bets!B10000"),A4)) -> 0 | F4: =SUMIF(INDIRECT("Bets!B18"):INDIRECT("Bets!B10000"),A4,INDIRECT("Bets!N18"):INDIRECT("Bets!N10000")) -> 0 | G4: =IF(E4<>0,F4/E4,0) -> 0 | J4: Bet365 | K4: 0 | L4: 0 | M4: =SUMPRODUCT(--(INDIRECT("Bets!D18"):INDIRECT("Bets!D10000")=J4),--(INDIRECT("Bets!I18"):INDIRECT("Bets!I10000")="-"),INDIRECT("Bets!G18"):INDIRECT("Bets!G10000")) -> 0 | N4: =(O4+M4)-(K4-L4) -> 80 | O4: =((K4+SUMIF(INDIRECT("Bets!D18"):INDIRECT("Bets!D10000"),J4,INDIRECT("Bets!L18"):INDIRECT("Bets!L10000"))-L4)-M4) -> 80
A5: Tennis | B5: =SUMIF(INDIRECT("Bets!B18"):INDIRECT("Bets!B10000"),A5,INDIRECT("Bets!G18"):INDIRECT("Bets!G10000")) -> 46680 | C5: =SUMIF(INDIRECT("Bets!B18"):INDIRECT("Bets!B10000"),A5,INDIRECT("Bets!L18"):INDIRECT("Bets!L10000")) -> 26008.4 | D5: 0.5571636675 | E5: =(COUNTIF(INDIRECT("Bets!B18"):INDIRECT("Bets!B10000"),A5)) -> 140 | F5: =SUMIF(INDIRECT("Bets!B18"):INDIRECT("Bets!B10000"),A5,INDIRECT("Bets!N18"):INDIRECT("Bets!N10000")) -> 51.2 | G5: 0.3657142857 | J5: Smarkets.com | K5: 0 | L5: 0 | M5: =SUMPRODUCT(--(INDIRECT("Bets!D18"):INDIRECT("Bets!D10000")=J5),--(INDIRECT("Bets!I18"):INDIRECT("Bets!I10000")="-"),INDIRECT("Bets!G18"):INDIRECT("Bets!G10000")) -> 0 | N5: 9875.3 | O5: =((K5+SUMIF(INDIRECT("Bets!D18"):INDIRECT("Bets!D10000"),J5,INDIRECT("Bets!L18"):INDIRECT("Bets!L10000"))-L5)-M5) -> 9875.3
A6: Horse Racing | B6: =SUMIF(INDIRECT("Bets!B18"):INDIRECT("Bets!B10000"),A6,INDIRECT("Bets!G18"):INDIRECT("Bets!G10000")) -> 0 | C6: =SUMIF(INDIRECT("Bets!B18"):INDIRECT("Bets!B10000"),A6,INDIRECT("Bets!L18"):INDIRECT("Bets!L10000")) -> 0 | D6: 0 | E6: =(COUNTIF(INDIRECT("Bets!B18"):INDIRECT("Bets!B10000"),A6)) -> 0 | F6: =SUMIF(INDIRECT("Bets!B18"):INDIRECT("Bets!B10000"),A6,INDIRECT("Bets!N18"):INDIRECT("Bets!N10000")) -> 0 | G6: 0 | J6: Betbright | K6: 0 | L6: 0 | M6: =SUMPRODUCT(--(INDIRECT("Bets!D18"):INDIRECT("Bets!D10000")=J6),--(INDIRECT("Bets!I18"):INDIRECT("Bets!I10000")="-"),INDIRECT("Bets!G18"):INDIRECT("Bets!G10000")) -> 0 | N6: 0 | O6: =((K6+SUMIF(INDIRECT("Bets!D18"):INDIRECT("Bets!D10000"),J6,INDIRECT("Bets!L18"):INDIRECT("Bets!L10000"))-L6)-M6) -> 0
A7: AFL | B7: =SUMIF(INDIRECT("Bets!B18"):INDIRECT("Bets!B10000"),A7,INDIRECT("Bets!G18"):INDIRECT("Bets!G10000")) -> 0 | C7: =SUMIF(INDIRECT("Bets!B18"):INDIRECT("Bets!B10000"),A7,INDIRECT("Bets!L18"):INDIRECT("Bets!L10000")) -> 0 | D7: 0 | E7: =(COUNTIF(INDIRECT("Bets!B18"):INDIRECT("Bets!B10000"),A7)) -> 0 | F7: =SUMIF(INDIRECT("Bets!B18"):INDIRECT("Bets!B10000"),A7,INDIRECT("Bets!N18"):INDIRECT("Bets!N10000")) -> 0 | G7: 0 | J7: Betdaq | K7: 0 | L7: 0 | M7: =SUMPRODUCT(--(INDIRECT("Bets!D18"):INDIRECT("Bets!D10000")=J7),--(INDIRECT("Bets!I18"):INDIRECT("Bets!I10000")="-"),INDIRECT("Bets!G18"):INDIRECT("Bets!G10000")) -> 0 | N7: 0 | O7: =((K7+SUMIF(INDIRECT("Bets!D18"):INDIRECT("Bets!D10000"),J7,INDIRECT("Bets!L18"):INDIRECT("Bets!L10000"))-L7)-M7) -> 0
A8: Baseball | B8: =SUMIF(INDIRECT("Bets!B18"):INDIRECT("Bets!B10000"),A8,INDIRECT("Bets!G18"):INDIRECT("Bets!G10000")) -> 0 | C8: =SUMIF(INDIRECT("Bets!B18"):INDIRECT("Bets!B10000"),A8,INDIRECT("Bets!L18"):INDIRECT("Bets!L10000")) -> 0 | D8: 0 | E8: =(COUNTIF(INDIRECT("Bets!B18"):INDIRECT("Bets!B10000"),A8)) -> 0 | F8: =SUMIF(INDIRECT("Bets!B18"):INDIRECT("Bets!B10000"),A8,INDIRECT("Bets!N18"):INDIRECT("Bets!N10000")) -> 0 | G8: 0 | J8: Betfair | K8: 0 | L8: 0 | M8: =SUMPRODUCT(--(INDIRECT("Bets!D18"):INDIRECT("Bets!D10000")=J8),--(INDIRECT("Bets!I18"):INDIRECT("Bets!I10000")="-"),INDIRECT("Bets!G18"):INDIRECT("Bets!G10000")) -> 0 | N8: 32 | O8: =((K8+SUMIF(INDIRECT("Bets!D18"):INDIRECT("Bets!D10000"),J8,INDIRECT("Bets!L18"):INDIRECT("Bets!L10000"))-L8)-M8) -> 32
A9: Baseketball | B9: =SUMIF(INDIRECT("Bets!B18"):INDIRECT("Bets!B10000"),A9,INDIRECT("Bets!G18"):INDIRECT("Bets!G10000")) -> 0 | C9: =SUMIF(INDIRECT("Bets!B18"):INDIRECT("Bets!B10000"),A9,INDIRECT("Bets!L18"):INDIRECT("Bets!L10000")) -> 0 | D9: 0 | E9: =(COUNTIF(INDIRECT("Bets!B18"):INDIRECT("Bets!B10000"),A9)) -> 0 | F9: =SUMIF(INDIRECT("Bets!B18"):INDIRECT("Bets!B10000"),A9,INDIRECT("Bets!N18"):INDIRECT("Bets!N10000")) -> 0 | G9: 0 | J9: Betfred | K9: 0 | L9: 0 | M9: =SUMPRODUCT(--(INDIRECT("Bets!D18"):INDIRECT("Bets!D10000")=J9),--(INDIRECT("Bets!I18"):INDIRECT("Bets!I10000")="-"),INDIRECT("Bets!G18"):INDIRECT("Bets!G10000")) -> 0 | N9: 0 | O9: =((K9+SUMIF(INDIRECT("Bets!D18"):INDIRECT("Bets!D10000"),J9,INDIRECT("Bets!L18"):INDIRECT("Bets!L10000"))-L9)-M9) -> 0
A10: Cricket | B10: =SUMIF(INDIRECT("Bets!B18"):INDIRECT("Bets!B10000"),A10,INDIRECT("Bets!G18"):INDIRECT("Bets!G10000")) -> 0 | C10: =SUMIF(INDIRECT("Bets!B18"):INDIRECT("Bets!B10000"),A10,INDIRECT("Bets!L18"):INDIRECT("Bets!L10000")) -> 0 | D10: 0 | E10: =(COUNTIF(INDIRECT("Bets!B18"):INDIRECT("Bets!B10000"),A10)) -> 0 | F10: =SUMIF(INDIRECT("Bets!B18"):INDIRECT("Bets!B10000"),A10,INDIRECT("Bets!N18"):INDIRECT("Bets!N10000")) -> 0 | G10: 0 | J10: Bet Internet | K10: 0 | L10: 0 | M10: =SUMPRODUCT(--(INDIRECT("Bets!D18"):INDIRECT("Bets!D10000")=J10),--(INDIRECT("Bets!I18"):INDIRECT("Bets!I10000")="-"),INDIRECT("Bets!G18"):INDIRECT("Bets!G10000")) -> 0 | N10: 0 | O10: =((K10+SUMIF(INDIRECT("Bets!D18"):INDIRECT("Bets!D10000"),J10,INDIRECT("Bets!L18"):INDIRECT("Bets!L10000"))-L10)-M10) -> 0
A11: Darts | B11: =SUMIF(INDIRECT("Bets!B18"):INDIRECT("Bets!B10000"),A11,INDIRECT("Bets!G18"):INDIRECT("Bets!G10000")) -> 0 | C11: =SUMIF(INDIRECT("Bets!B18"):INDIRECT("Bets!B10000"),A11,INDIRECT("Bets!L18"):INDIRECT("Bets!L10000")) -> 0 | D11: 0 | E11: =(COUNTIF(INDIRECT("Bets!B18"):INDIRECT("Bets!B10000"),A11)) -> 0 | F11: =SUMIF(INDIRECT("Bets!B18"):INDIRECT("Bets!B10000"),A11,INDIRECT("Bets!N18"):INDIRECT("Bets!N10000")) -> 0 | G11: 0 | J11: Betway | K11: 0 | L11: 0 | M11: =SUMPRODUCT(--(INDIRECT("Bets!D18"):INDIRECT("Bets!D10000")=J11),--(INDIRECT("Bets!I18"):INDIRECT("Bets!I10000")="-"),INDIRECT("Bets!G18"):INDIRECT("Bets!G10000")) -> 0 | N11: 5852 | O11: =((K11+SUMIF(INDIRECT("Bets!D18"):INDIRECT("Bets!D10000"),J11,INDIRECT("Bets!L18"):INDIRECT("Bets!L10000"))-L11)-M11) -> 5852
A12: Dogs | B12: =SUMIF(INDIRECT("Bets!B18"):INDIRECT("Bets!B10000"),A12,INDIRECT("Bets!G18"):INDIRECT("Bets!G10000")) -> 0 | C12: =SUMIF(INDIRECT("Bets!B18"):INDIRECT("Bets!B10000"),A12,INDIRECT("Bets!L18"):INDIRECT("Bets!L10000")) -> 0 | D12: 0 | E12: =(COUNTIF(INDIRECT("Bets!B18"):INDIRECT("Bets!B10000"),A12)) -> 0 | F12: =SUMIF(INDIRECT("Bets!B18"):INDIRECT("Bets!B10000"),A12,INDIRECT("Bets!N18"):INDIRECT("Bets!N10000")) -> 0 | G12: 0 | J12: BetVictor | K12: 0 | L12: 0 | M12: =SUMPRODUCT(--(INDIRECT("Bets!D18"):INDIRECT("Bets!D10000")=J12),--(INDIRECT("Bets!I18"):INDIRECT("Bets!I10000")="-"),INDIRECT("Bets!G18"):INDIRECT("Bets!G10000")) -> 0 | N12: -1010 | O12: =((K12+SUMIF(INDIRECT("Bets!D18"):INDIRECT("Bets!D10000"),J12,INDIRECT("Bets!L18"):INDIRECT("Bets!L10000"))-L12)-M12) -> -1010
A13: F1 | B13: =SUMIF(INDIRECT("Bets!B18"):INDIRECT("Bets!B10000"),A13,INDIRECT("Bets!G18"):INDIRECT("Bets!G10000")) -> 0 | C13: =SUMIF(INDIRECT("Bets!B18"):INDIRECT("Bets!B10000"),A13,INDIRECT("Bets!L18"):INDIRECT("Bets!L10000")) -> 0 | D13: =IF(B13<>0,C13/B13,0) -> 0 | E13: =(COUNTIF(INDIRECT("Bets!B18"):INDIRECT("Bets!B10000"),A13)) -> 0 | F13: =SUMIF(INDIRECT("Bets!B18"):INDIRECT("Bets!B10000"),A13,INDIRECT("Bets!N18"):INDIRECT("Bets!N10000")) -> 0 | G13: =IF(E13<>0,F13/E13,0) -> 0 | J13: Boylesports | K13: 0 | L13: 0 | M13: =SUMPRODUCT(--(INDIRECT("Bets!D18"):INDIRECT("Bets!D10000")=J13),--(INDIRECT("Bets!I18"):INDIRECT("Bets!I10000")="-"),INDIRECT("Bets!G18"):INDIRECT("Bets!G10000")) -> 0 | N13: 1150 | O13: =((K13+SUMIF(INDIRECT("Bets!D18"):INDIRECT("Bets!D10000"),J13,INDIRECT("Bets!L18"):INDIRECT("Bets!L10000"))-L13)-M13) -> 1150
A14: NFL | B14: =SUMIF(INDIRECT("Bets!B18"):INDIRECT("Bets!B10000"),A14,INDIRECT("Bets!G18"):INDIRECT("Bets!G10000")) -> 0 | C14: =SUMIF(INDIRECT("Bets!B18"):INDIRECT("Bets!B10000"),A14,INDIRECT("Bets!L18"):INDIRECT("Bets!L10000")) -> 0 | D14: =IF(B14<>0,C14/B14,0) -> 0 | E14: =(COUNTIF(INDIRECT("Bets!B18"):INDIRECT("Bets!B10000"),A14)) -> 0 | F14: =SUMIF(INDIRECT("Bets!B18"):INDIRECT("Bets!B10000"),A14,INDIRECT("Bets!N18"):INDIRECT("Bets!N10000")) -> 0 | G14: =IF(E14<>0,F14/E14,0) -> 0 | J14: Coral | K14: 0 | L14: 0 | M14: =SUMPRODUCT(--(INDIRECT("Bets!D18"):INDIRECT("Bets!D10000")=J14),--(INDIRECT("Bets!I18"):INDIRECT("Bets!I10000")="-"),INDIRECT("Bets!G18"):INDIRECT("Bets!G10000")) -> 0 | N14: 3650 | O14: =((K14+SUMIF(INDIRECT("Bets!D18"):INDIRECT("Bets!D10000"),J14,INDIRECT("Bets!L18"):INDIRECT("Bets!L10000"))-L14)-M14) -> 3650
A15: Rugby | B15: =SUMIF(INDIRECT("Bets!B18"):INDIRECT("Bets!B10000"),A15,INDIRECT("Bets!G18"):INDIRECT("Bets!G10000")) -> 0 | C15: =SUMIF(INDIRECT("Bets!B18"):INDIRECT("Bets!B10000"),A15,INDIRECT("Bets!L18"):INDIRECT("Bets!L10000")) -> 0 | D15: =IF(B15<>0,C15/B15,0) -> 0 | E15: =(COUNTIF(INDIRECT("Bets!B18"):INDIRECT("Bets!B10000"),A15)) -> 0 | F15: =SUMIF(INDIRECT("Bets!B18"):INDIRECT("Bets!B10000"),A15,INDIRECT("Bets!N18"):INDIRECT("Bets!N10000")) -> 0 | G15: =IF(E15<>0,F15/E15,0) -> 0 | J15: Ladbrokes | K15: 0 | L15: 0 | M15: =SUMPRODUCT(--(INDIRECT("Bets!D18"):INDIRECT("Bets!D10000")=J15),--(INDIRECT("Bets!I18"):INDIRECT("Bets!I10000")="-"),INDIRECT("Bets!G18"):INDIRECT("Bets!G10000")) -> 0 | N15: -500 | O15: =((K15+SUMIF(INDIRECT("Bets!D18"):INDIRECT("Bets!D10000"),J15,INDIRECT("Bets!L18"):INDIRECT("Bets!L10000"))-L15)-M15) -> -500
A16: Other | B16: =SUMIF(INDIRECT("Bets!B18"):INDIRECT("Bets!B10000"),A16,INDIRECT("Bets!G18"):INDIRECT("Bets!G10000")) -> 0 | C16: =SUMIF(INDIRECT("Bets!B18"):INDIRECT("Bets!B10000"),A16,INDIRECT("Bets!L18"):INDIRECT("Bets!L10000")) -> 0 | D16: =IF(B16<>0,C16/B16,0) -> 0 | E16: =(COUNTIF(INDIRECT("Bets!B18"):INDIRECT("Bets!B10000"),A16)) -> 0 | F16: =SUMIF(INDIRECT("Bets!B18"):INDIRECT("Bets!B10000"),A16,INDIRECT("Bets!N18"):INDIRECT("Bets!N10000")) -> 0 | G16: =IF(E16<>0,F16/E16,0) -> 0 | J16: Paddy Power | K16: 0 | L16: 0 | M16: =SUMPRODUCT(--(INDIRECT("Bets!D18"):INDIRECT("Bets!D10000")=J16),--(INDIRECT("Bets!I18"):INDIRECT("Bets!I10000")="-"),INDIRECT("Bets!G18"):INDIRECT("Bets!G10000")) -> 0 | N16: -250 | O16: =((K16+SUMIF(INDIRECT("Bets!D18"):INDIRECT("Bets!D10000"),J16,INDIRECT("Bets!L18"):INDIRECT("Bets!L10000"))-L16)-M16) -> -250
A17: Total | B17: =SUM(B4:B16) -> 46680 | C17: =SUM(C4:C16) -> 26008.4 | D17: =IF(B17<>0,C17/B17,0) -> 0.5571636675 | E17: =SUM(E4:E16) -> 140 | F17: =SUM(F4:F16) -> 51.2 | G17: =IF(E17<>0,F17/E17,0) -> 0.3657142857 | J17: Pinnacle | K17: 0 | L17: 0 | M17: =SUMPRODUCT(--(INDIRECT("Bets!D18"):INDIRECT("Bets!D10000")=J17),--(INDIRECT("Bets!I18"):INDIRECT("Bets!I10000")="-"),INDIRECT("Bets!G18"):INDIRECT("Bets!G10000")) -> 0 | N17: 9476.3 | O17: =((K17+SUMIF(INDIRECT("Bets!D18"):INDIRECT("Bets!D10000"),J17,INDIRECT("Bets!L18"):INDIRECT("Bets!L10000"))-L17)-M17) -> 9476.3
J18: Racebets | K18: 0 | L18: 0 | M18: =SUMPRODUCT(--(INDIRECT("Bets!D18"):INDIRECT("Bets!D10000")=J18),--(INDIRECT("Bets!I18"):INDIRECT("Bets!I10000")="-"),INDIRECT("Bets!G18"):INDIRECT("Bets!G10000")) -> 0 | N18: 0 | O18: =((K18+SUMIF(INDIRECT("Bets!D18"):INDIRECT("Bets!D10000"),J18,INDIRECT("Bets!L18"):INDIRECT("Bets!L10000"))-L18)-M18) -> 0
J19: Seaniemac | K19: 0 | L19: 0 | M19: =SUMPRODUCT(--(INDIRECT("Bets!D18"):INDIRECT("Bets!D10000")=J19),--(INDIRECT("Bets!I18"):INDIRECT("Bets!I10000")="-"),INDIRECT("Bets!G18"):INDIRECT("Bets!G10000")) -> 0 | N19: 0 | O19: =((K19+SUMIF(INDIRECT("Bets!D18"):INDIRECT("Bets!D10000"),J19,INDIRECT("Bets!L18"):INDIRECT("Bets!L10000"))-L19)-M19) -> 0
J20: Sky Bet | K20: 0 | L20: 0 | M20: =SUMPRODUCT(--(INDIRECT("Bets!D18"):INDIRECT("Bets!D10000")=J20),--(INDIRECT("Bets!I18"):INDIRECT("Bets!I10000")="-"),INDIRECT("Bets!G18"):INDIRECT("Bets!G10000")) -> 0 | N20: 840 | O20: =((K20+SUMIF(INDIRECT("Bets!D18"):INDIRECT("Bets!D10000"),J20,INDIRECT("Bets!L18"):INDIRECT("Bets!L10000"))-L20)-M20) -> 840
J21: Sportingbet | K21: 0 | L21: 0 | M21: =SUMPRODUCT(--(INDIRECT("Bets!D18"):INDIRECT("Bets!D10000")=J21),--(INDIRECT("Bets!I18"):INDIRECT("Bets!I10000")="-"),INDIRECT("Bets!G18"):INDIRECT("Bets!G10000")) -> 0 | N21: -200 | O21: =((K21+SUMIF(INDIRECT("Bets!D18"):INDIRECT("Bets!D10000"),J21,INDIRECT("Bets!L18"):INDIRECT("Bets!L10000"))-L21)-M21) -> -200
J22: Stan James | K22: 0 | L22: 0 | M22: =SUMPRODUCT(--(INDIRECT("Bets!D18"):INDIRECT("Bets!D10000")=J22),--(INDIRECT("Bets!I18"):INDIRECT("Bets!I10000")="-"),INDIRECT("Bets!G18"):INDIRECT("Bets!G10000")) -> 0 | N22: =(O22+M22)-(K22-L22) -> 0 | O22: =((K22+SUMIF(INDIRECT("Bets!D18"):INDIRECT("Bets!D10000"),J22,INDIRECT("Bets!L18"):INDIRECT("Bets!L10000"))-L22)-M22) -> 0
J23: Titan Bet | K23: 0 | L23: 0 | M23: =SUMPRODUCT(--(INDIRECT("Bets!D18"):INDIRECT("Bets!D10000")=J23),--(INDIRECT("Bets!I18"):INDIRECT("Bets!I10000")="-"),INDIRECT("Bets!G18"):INDIRECT("Bets!G10000")) -> 0 | N23: 0 | O23: =((K23+SUMIF(INDIRECT("Bets!D18"):INDIRECT("Bets!D10000"),J23,INDIRECT("Bets!L18"):INDIRECT("Bets!L10000"))-L23)-M23) -> 0
J24: Totesport | K24: 0 | L24: 0 | M24: =SUMPRODUCT(--(INDIRECT("Bets!D18"):INDIRECT("Bets!D10000")=J24),--(INDIRECT("Bets!I18"):INDIRECT("Bets!I10000")="-"),INDIRECT("Bets!G18"):INDIRECT("Bets!G10000")) -> 0 | N24: 0 | O24: =((K24+SUMIF(INDIRECT("Bets!D18"):INDIRECT("Bets!D10000"),J24,INDIRECT("Bets!L18"):INDIRECT("Bets!L10000"))-L24)-M24) -> 0
J25: Unibet | K25: 0 | L25: 0 | M25: =SUMPRODUCT(--(INDIRECT("Bets!D18"):INDIRECT("Bets!D10000")=J25),--(INDIRECT("Bets!I18"):INDIRECT("Bets!I10000")="-"),INDIRECT("Bets!G18"):INDIRECT("Bets!G10000")) -> 0 | N25: -1950 | O25: =((K25+SUMIF(INDIRECT("Bets!D18"):INDIRECT("Bets!D10000"),J25,INDIRECT("Bets!L18"):INDIRECT("Bets!L10000"))-L25)-M25) -> -1950
J26: William Hill | K26: 0 | L26: 0 | M26: =SUMPRODUCT(--(INDIRECT("Bets!D18"):INDIRECT("Bets!D10000")=J26),--(INDIRECT("Bets!I18"):INDIRECT("Bets!I10000")="-"),INDIRECT("Bets!G18"):INDIRECT("Bets!G10000")) -> 0 | N26: -500 | O26: =((K26+SUMIF(INDIRECT("Bets!D18"):INDIRECT("Bets!D10000"),J26,INDIRECT("Bets!L18"):INDIRECT("Bets!L10000"))-L26)-M26) -> -500
J27: Marathon Bet | K27: 0 | L27: 0 | M27: =SUMPRODUCT(--(INDIRECT("Bets!D18"):INDIRECT("Bets!D10000")=J27),--(INDIRECT("Bets!I18"):INDIRECT("Bets!I10000")="-"),INDIRECT("Bets!G18"):INDIRECT("Bets!G10000")) -> 100 | N27: -3066.6 | O27: =((K27+SUMIF(INDIRECT("Bets!D18"):INDIRECT("Bets!D10000"),J27,INDIRECT("Bets!L18"):INDIRECT("Bets!L10000"))-L27)-M27) -> -3166.6
J28: 888Sport | K28: 0 | L28: 0 | M28: =SUMPRODUCT(--(INDIRECT("Bets!D18"):INDIRECT("Bets!D10000")=J28),--(INDIRECT("Bets!I18"):INDIRECT("Bets!I10000")="-"),INDIRECT("Bets!G18"):INDIRECT("Bets!G10000")) -> 0 | N28: 0 | O28: =((K28+SUMIF(INDIRECT("Bets!D18"):INDIRECT("Bets!D10000"),J28,INDIRECT("Bets!L18"):INDIRECT("Bets!L10000"))-L28)-M28) -> 0
J30: Totals | K30: =SUM(K4:K28) -> 0 | L30: =SUM(L4:L28) -> 0 | M30: =SUM(M4:M28) -> 100 | N30: =SUM(N4:N28) -> 23479 | O30: =SUM(O4:O28) -> 23379
